fUSD/lending_fUSD_20250503
["ID","MTS","AMOUNT","RATE_DAILY","PERIOD"]
[359665172,1746232246100,-150.0,0.00019949,2]
[359665173,1746232246111,-3074.638,0.00019951,2]
[359665174,1746232246120,-204.434,0.00019951,2]
[359665175,1746232246131,-150.0,0.00019952,2]
[359665176,1746232246141,-150.0,0.00019955,2]
[359665177,1746232246151,-150.0,0.00019955,2]
[359665178,1746232246162,-150.0,0.00019956,2]
[359665179,1746232246172,-150.0,0.0001996,2]
[359665180,1746232246184,-150.0,0.00019962,2]
[359665181,1746232246194,-1074.92705239,0.00019965,2]
[359665182,1746232246204,-150.0,0.00019967,2]
[359665183,1746232246215,-514.0,0.0001997,2]
[359665184,1746232246224,-500.0,0.00019973,2]
[359665185,1746232246233,-500.0,0.00019973,2]
[359665186,1746232246244,-920.0,0.00019973,2]
[359665187,1746232246252,-24257.0,0.00019973,2]
[359665188,1746232246262,-501.47327578,0.00019973,2]
[359665189,1746232246270,-165.99958587,0.00019973,2]
[359665190,1746232246281,-505.12152298,0.00019973,2]
[359665191,1746232246290,-500.0,0.00019973,2]
[359665192,1746232246302,-500.0,0.00019973,2]
[359665193,1746232246313,-538.7932649,0.00019973,2]
[359665194,1746232246323,-302.52572163,0.00019973,2]
[359665195,1746232246333,-500.0,0.00019973,2]
[359665196,1746232246341,-500.0,0.00019973,2]
[359665197,1746232246351,-500.0,0.00019973,2]
[359665198,1746232246361,-500.0,0.00019973,2]
[359665199,1746232246371,-152.56461415,0.00019973,2]
[359665200,1746232246380,-500.0,0.00019973,2]
[359665201,1746232246390,-160.1305096,0.00019973,2]
[359665202,1746232246399,-505.11388319,0.00019973,2]
[359665203,1746232246408,-500.0,0.00019973,2]
[359665204,1746232246417,-500.0,0.00019973,2]
[359665205,1746232246427,-243.25265261,0.00019973,2]
[359665206,1746232246436,-517.08214642,0.00019973,2]
[359665207,1746232246446,-150.0,0.00019973,2]
[359665208,1746232246456,-826.7929,0.00019974,2]
[359665209,1746232246465,-575.646181,0.00019974,2]
[359665210,1746232246477,-450.0,0.00019974,2]
[359665211,1746232246487,-450.0,0.00019974,2]
[359665212,1746232246497,-450.0,0.00019974,2]
[359665213,1746232246507,-6819.99,0.00019974,2]
[359665214,1746232246517,-746.0,0.00019974,2]
[359665215,1746232246528,-450.0,0.00019974,2]
[359665216,1746232246538,-450.0,0.00019974,2]
[359665217,1746232246547,-450.0,0.00019974,2]
[359665218,1746232246557,-450.0,0.00019974,2]
[359665219,1746232246567,-450.0,0.00019974,2]
[359665220,1746232246577,-450.0,0.00019974,2]
[359665221,1746232246587,-518.15,0.00019974,2]
[359665222,1746232246596,-450.0,0.00019974,2]
[359665223,1746232246606,-450.0,0.00019974,2]
[359665224,1746232246615,-450.0,0.00019974,2]
[359665225,1746232246625,-450.0,0.00019974,2]
[359665226,1746232246634,-450.0,0.00019974,2]
[359665227,1746232246644,-450.0,0.00019974,2]
[359665228,1746232246654,-450.0,0.00019974,2]
[359665229,1746232246663,-450.0,0.00019974,2]
[359665230,1746232246673,-450.0,0.00019974,2]
[359665231,1746232246683,-531.7,0.00019974,2]
[359665232,1746232246692,-450.0,0.00019974,2]
[359665233,1746232246701,-450.0,0.00019974,2]
[359665234,1746232246711,-450.0,0.00019974,2]
[359665235,1746232246720,-450.0,0.00019974,2]
[359665236,1746232246729,-450.0,0.00019974,2]
[359665237,1746232246739,-318.17590123,0.00019974,2]
[359665238,1746232246749,-1247.18,0.00019974,2]
[359665239,1746232246758,-494.61,0.00019974,2]
[359665240,1746232246767,-5145.91,0.00019974,2]
[359665241,1746232246777,-450.0,0.00019974,2]
[359665242,1746232246786,-450.0,0.00019974,2]
[359665243,1746232246796,-537.11,0.00019974,2]
[359665244,1746232246806,-1206.77,0.00019974,2]
[359665245,1746232246815,-450.0,0.00019974,2]
[359665246,1746232246825,-450.0,0.00019974,2]
[359665247,1746232246835,-450.0,0.00019974,2]
[359665248,1746232246845,-450.0,0.00019974,2]
[359665249,1746232246854,-470.02,0.00019974,2]
[359665250,1746232246864,-450.0,0.00019974,2]
[359665251,1746232246874,-450.0,0.00019974,2]
[359665252,1746232246883,-450.0,0.00019974,2]
[359665253,1746232246892,-450.0,0.00019974,2]
[359665254,1746232246902,-450.0,0.00019974,2]
[359665255,1746232246912,-551.67,0.00019974,2]
[359665256,1746232246922,-540.14,0.00019974,2]
[359665257,1746232246932,-450.0,0.00019974,2]
[359665258,1746232246941,-1055.86,0.00019974,2]
[359665259,1746232246951,-450.0,0.00019974,2]
[359665260,1746232246960,-1587.0,0.00019974,2]
[359665261,1746232246970,-1613.73,0.00019974,2]
[359665262,1746232246980,-450.0,0.00019974,2]
[359665263,1746232246989,-450.0,0.00019974,2]
[359665264,1746232246999,-450.0,0.00019974,2]
[359665265,1746232247008,-450.0,0.00019974,2]
[359665266,1746232247018,-450.0,0.00019974,2]
[359665267,1746232247027,-450.0,0.00019974,2]
[359665268,1746232247037,-450.0,0.00019974,2]
[359665269,1746232247046,-246.53420213,0.00019974,2]
[359665270,1746232247056,-450.0,0.00019974,2]
[359665271,1746232247066,-450.0,0.00019974,2]
[359665272,1746232247076,-515.5,0.00019974,2]
[359665273,1746232247088,-1722.0,0.00019975,2]
[359665274,1746232247097,-450.0,0.00019975,2]
[359665275,1746232247107,-472.56850095,0.00019975,2]
[359665276,1746232247116,-450.0,0.00019975,2]
[359665277,1746232247127,-450.0,0.00019975,2]
[359665278,1746232247136,-450.0,0.00019975,2]
[359665279,1746232247146,-450.0,0.00019975,2]
[359665280,1746232247155,-450.0,0.00019975,2]
[359665281,1746232247165,-450.0,0.00019975,2]
[359665282,1746232247175,-450.0,0.00019975,2]
[359665283,1746232247185,-450.0,0.00019975,2]
[359665284,1746232247194,-450.0,0.00019975,2]
[359665285,1746232247204,-450.0,0.00019975,2]
[359665286,1746232247217,-450.0,0.00019975,2]
[359665287,1746232247226,-450.0,0.00019975,2]
[359665288,1746232247236,-450.0,0.00019975,2]
[359665289,1746232247245,-450.0,0.00019975,2]
[359665290,1746232247255,-450.0,0.00019975,2]
[359665291,1746232247264,-450.0,0.00019975,2]
[359665292,1746232247274,-450.0,0.00019975,2]
[359665293,1746232247284,-450.0,0.00019975,2]
[359665294,1746232247294,-450.0,0.00019975,2]
[359665295,1746232247303,-450.0,0.00019975,2]
[359665296,1746232247312,-450.0,0.00019975,2]
[359665297,1746232247322,-450.0,0.00019975,2]
[359665298,1746232247331,-501.91,0.00019975,2]
[359665299,1746232247341,-450.0,0.00019975,2]
[359665300,1746232247350,-592.85,0.00019975,2]
[359665301,1746232247360,-450.0,0.00019975,2]
[359665302,1746232247369,-450.0,0.00019975,2]
[359665303,1746232247379,-450.0,0.00019975,2]
[359665304,1746232247388,-450.0,0.00019975,2]
[359665305,1746232247398,-450.0,0.00019975,2]
[359665306,1746232247407,-450.0,0.00019975,2]
[359665307,1746232247417,-450.0,0.00019975,2]
[359665308,1746232247426,-450.0,0.00019975,2]
[359665309,1746232247435,-298.56431226,0.00019975,2]
[359665310,1746232247445,-450.0,0.00019975,2]
[359665311,1746232247455,-450.0,0.00019975,2]
[359665312,1746232247464,-450.0,0.00019975,2]
[359665313,1746232247473,-450.0,0.00019975,2]
[359665314,1746232247483,-453.85,0.00019975,2]
[359665315,1746232247492,-450.0,0.00019975,2]
[359665316,1746232247502,-450.0,0.00019975,2]
[359665317,1746232247512,-450.0,0.00019975,2]
[359665318,1746232247521,-450.0,0.00019975,2]
[359665319,1746232247530,-450.0,0.00019975,2]
[359665320,1746232247539,-450.0,0.00019975,2]
[359665321,1746232247549,-450.0,0.00019975,2]
[359665322,1746232247558,-450.0,0.00019975,2]
[359665323,1746232247567,-450.0,0.00019975,2]
[359665324,1746232247577,-644.32,0.00019975,2]
[359665325,1746232247586,-450.0,0.00019975,2]
[359665326,1746232247596,-872.44,0.00019975,2]
[359665327,1746232247606,-450.0,0.00019975,2]
[359665328,1746232247615,-450.0,0.00019975,2]
[359665329,1746232247625,-672.44,0.00019975,2]
[359665330,1746232247634,-450.0,0.00019975,2]
[359665331,1746232247644,-450.0,0.00019975,2]
[359665332,1746232247654,-464.49,0.00019975,2]
[359665333,1746232247664,-450.0,0.00019975,2]
[359665334,1746232247674,-450.0,0.00019975,2]
[359665335,1746232247683,-450.0,0.00019975,2]
[359665336,1746232247693,-450.0,0.00019975,2]
[359665337,1746232247702,-460.60661297,0.00019975,2]
[359665338,1746232247712,-450.0,0.00019975,2]
[359665339,1746232247722,-450.0,0.00019975,2]
[359665340,1746232247732,-450.0,0.00019975,2]
[359665341,1746232247742,-450.0,0.00019975,2]
[359665342,1746232247752,-450.0,0.00019975,2]
[359665343,1746232247761,-450.0,0.00019975,2]
[359665344,1746232247771,-450.0,0.00019975,2]
[359665345,1746232247781,-450.0,0.00019975,2]
[359665346,1746232247791,-450.0,0.00019975,2]
[359665347,1746232247801,-450.0,0.00019975,2]
[359665348,1746232247811,-450.0,0.00019975,2]
[359665349,1746232247821,-450.0,0.00019975,2]
[359665350,1746232247830,-450.0,0.00019975,2]
[359665351,1746232247840,-450.0,0.00019975,2]
[359665352,1746232247849,-450.0,0.00019975,2]
[359665353,1746232247859,-450.0,0.00019975,2]
[359665354,1746232247869,-450.0,0.00019975,2]
[359665355,1746232247878,-450.0,0.00019975,2]
[359665356,1746232247888,-450.0,0.00019975,2]
[359665357,1746232247898,-450.0,0.00019975,2]
[359665358,1746232247907,-450.0,0.00019975,2]
[359665359,1746232247916,-496.42,0.00019975,2]
[359665360,1746232247926,-450.0,0.00019975,2]
[359665361,1746232247936,-450.0,0.00019975,2]
[359665362,1746232247946,-450.0,0.00019975,2]
[359665363,1746232247956,-450.0,0.00019975,2]
[359665364,1746232247966,-450.0,0.00019975,2]
[359665365,1746232247976,-450.0,0.00019975,2]
[359665366,1746232247986,-450.0,0.00019975,2]
[359665367,1746232247995,-450.0,0.00019975,2]
[359665368,1746232248006,-450.0,0.00019975,2]
[359665369,1746232248015,-450.0,0.00019975,2]
[359665370,1746232248025,-450.0,0.00019975,2]
[359665371,1746232248035,-450.0,0.00019975,2]
[359665372,1746232248044,-582.17,0.00019975,2]
[359665373,1746232248053,-562.0,0.00019975,2]
[359665374,1746232248063,-450.0,0.00019975,2]
[359665375,1746232248072,-450.0,0.00019975,2]
[359665376,1746232248082,-450.0,0.00019975,2]
[359665377,1746232248092,-450.0,0.00019975,2]
[359665378,1746232248102,-450.0,0.00019975,2]
[359665379,1746232248112,-450.0,0.00019975,2]
[359665380,1746232248123,-337.06400703,0.00019975,2]
[359665381,1746232248133,-450.0,0.00019975,2]
[359665382,1746232248142,-450.0,0.00019975,2]
[359665383,1746232248152,-450.0,0.00019975,2]
[359665384,1746232248162,-450.0,0.00019975,2]
[359665385,1746232248172,-450.0,0.00019975,2]
[359665386,1746232248181,-450.0,0.00019975,2]
[359665387,1746232248191,-450.0,0.00019975,2]
[359665388,1746232248200,-450.0,0.00019975,2]
[359665389,1746232248210,-450.0,0.00019975,2]
[359665390,1746232248219,-759.43,0.00019975,2]
[359665391,1746232248229,-450.0,0.00019975,2]
[359665392,1746232248239,-450.0,0.00019975,2]
[359665393,1746232248248,-450.0,0.00019975,2]
[359665394,1746232248258,-450.0,0.00019975,2]
[359665395,1746232248267,-705.98,0.00019975,2]
[359665396,1746232248277,-754.13,0.00019975,2]
[359665397,1746232248286,-450.0,0.00019975,2]
[359665398,1746232248295,-450.0,0.00019975,2]
[359665399,1746232248305,-450.0,0.00019975,2]
[359665400,1746232248315,-380.38508656,0.00019975,2]
[359665401,1746232248324,-450.0,0.00019975,2]
[359665402,1746232248334,-450.0,0.00019975,2]
[359665403,1746232248344,-450.0,0.00019975,2]
[359665404,1746232248354,-450.0,0.00019975,2]
[359665405,1746232248364,-450.0,0.00019975,2]
[359665406,1746232248374,-3984.1,0.00019975,2]
[359665407,1746232248384,-541.93,0.00019975,2]
[359665408,1746232248394,-450.0,0.00019975,2]
[359665409,1746232248403,-4332.3,0.00019975,2]
[359665410,1746232248413,-450.0,0.00019975,2]
[359665411,1746232248422,-859.28,0.00019975,2]
[359665412,1746232248432,-450.0,0.00019975,2]
[359665413,1746232248441,-3923.4,0.00019975,2]
[359665414,1746232248451,-450.0,0.00019975,2]
[359665415,1746232248460,-450.0,0.00019975,2]
[359665416,1746232248470,-519.25,0.00019975,2]
[359665417,1746232248479,-570.0,0.00019975,2]
[359665418,1746232248489,-838.7,0.00019975,2]
[359665419,1746232248499,-450.0,0.00019975,2]
[359665420,1746232248509,-472.39,0.00019975,2]
[359665421,1746232248519,-1041.14,0.00019975,2]
[359665422,1746232248529,-480.59,0.00019975,2]
[359665423,1746232248538,-450.0,0.00019975,2]
[359665424,1746232248548,-947.19,0.00019975,2]
[359665425,1746232248558,-450.0,0.00019975,2]
[359665426,1746232248567,-450.0,0.00019975,2]
[359665427,1746232248577,-450.0,0.00019975,2]
[359665428,1746232248586,-450.0,0.00019975,2]
[359665429,1746232248596,-528.01,0.00019975,2]
[359665430,1746232248606,-5860.25,0.00019975,2]
[359665431,1746232248617,-450.0,0.00019975,2]
[359665432,1746232248627,-450.0,0.00019975,2]
[359665433,1746232248637,-179.37068499,0.00019975,2]
[359665434,1746232248647,-450.0,0.00019975,2]
[359665435,1746232248657,-4305.61,0.00019975,2]
[359665436,1746232248667,-450.0,0.00019975,2]
[359665437,1746232248676,-450.0,0.00019975,2]
[359665438,1746232248686,-450.0,0.00019975,2]
[359665439,1746232248696,-450.0,0.00019975,2]
[359665440,1746232248706,-450.0,0.00019975,2]
[359665441,1746232248716,-5699.37964864,0.00019975,2]
[359665442,1746232249325,-1517.50982453,0.00019975,2]
[359665443,1746232249336,-666.24,0.00019975,2]
[359665444,1746232249352,-5156.462,0.00019975,2]
[359665445,1746232249364,-3742.70217563,0.00019975,2]
[359665446,1746232249376,-329.807,0.00019975,2]
[359665447,1746232249388,-1452.39,0.00019975,2]
[359665448,1746232249401,-280.407,0.00019975,2]
[359665449,1746232249417,-1997.01344201,0.00019975,2]
[359665450,1746232249428,-424.88308538,0.00019975,2]
[359665451,1746232249581,-500.0,0.00019601,2]
[359665452,1746232249591,-1105.4161288,0.00019799,2]
[359665453,1746232249602,-69107.21582381,0.00019975,2]
[359665454,1746232249612,-450.0,0.00019975,2]
[359665455,1746232249621,-450.0,0.00019975,2]
[359665456,1746232249631,-450.0,0.00019975,2]
[359665457,1746232249640,-300.0,0.00019975,2]
[359665458,1746232249650,-4734.59,0.00019975,2]
[359665459,1746232249659,-504.83,0.00019975,2]
[359665460,1746232249668,-521.58,0.00019975,2]
[359665461,1746232249678,-2587.08927907,0.00019975,2]
[359665462,1746232249691,-6023.224748,0.00019975,2]
[359665463,1746232249703,-18653.57597293,0.00019975,2]
[359665464,1746232249713,-862.22,0.00019975,2]
[359665465,1746232249723,-450.0,0.00019975,2]
[359665466,1746232249733,-450.0,0.00019975,2]
[359665467,1746232249744,-450.0,0.00019975,2]
[359665468,1746232249754,-1713.74,0.00019975,2]
[359665469,1746232249764,-691.91,0.00019975,2]
[359665470,1746232249773,-654.43,0.00019975,2]
[359665471,1746232249783,-450.0,0.00019975,2]
[359665472,1746232249793,-450.0,0.00019975,2]
[359665473,1746232249802,-497.92,0.00019975,2]
[359665474,1746232249812,-450.0,0.00019975,2]
[359665475,1746232249823,-450.0,0.00019975,2]
[359665476,1746232249835,-15108.07,0.00019975,2]
[359665477,1746232249844,-2364.82,0.00019975,2]
[359665478,1746232249855,-450.0,0.00019975,2]
[359665479,1746232249864,-241.72896468,0.00019975,2]
[359665480,1746232249874,-450.0,0.00019975,2]
[359665481,1746232249883,-450.0,0.00019975,2]
[359665482,1746232249893,-559.31,0.00019975,2]
[359665483,1746232249903,-450.0,0.00019975,2]
[359665484,1746232249913,-450.0,0.00019975,2]
[359665485,1746232249923,-456.59,0.00019975,2]
[359665486,1746232249933,-424.60009718,0.00019975,2]
[359665487,1746232249943,-450.0,0.00019975,2]
[359665488,1746232249953,-450.0,0.00019975,2]
[359665489,1746232249963,-450.0,0.00019975,2]
[359665490,1746232249974,-518.94,0.00019975,2]
[359665491,1746232249983,-450.0,0.00019975,2]
[359665492,1746232249992,-1438.86,0.00019975,2]
[359665493,1746232250002,-450.0,0.00019975,2]
[359665494,1746232250011,-966.14,0.00019975,2]
[359665495,1746232250021,-450.0,0.00019975,2]
[359665496,1746232250031,-450.0,0.00019975,2]
[359665497,1746232250040,-450.0,0.00019975,2]
[359665498,1746232250049,-1778.77,0.00019975,2]
[359665499,1746232250058,-450.0,0.00019975,2]
[359665500,1746232250068,-450.0,0.00019975,2]
[359665501,1746232250078,-559.6,0.00019975,2]
[359665502,1746232250087,-461.57,0.00019975,2]
[359665503,1746232250097,-540.15711062,0.00019975,2]
[359665504,1746232250107,-450.0,0.00019975,2]
[359665505,1746232250117,-999.0,0.00019975,2]
[359665506,1746232250127,-450.0,0.00019975,2]
[359665507,1746232250136,-1081.65,0.00019975,2]
[359665508,1746232250146,-654.35,0.00019975,2]
[359665509,1746232250155,-518.5,0.00019975,2]
[359665510,1746232250164,-450.0,0.00019975,2]
[359665511,1746232250174,-1513.9,0.00019975,2]
[359665512,1746232250184,-459.34,0.00019975,2]
[359665513,1746232250194,-450.0,0.00019975,2]
[359665514,1746232250204,-450.0,0.00019975,2]
[359665515,1746232250214,-450.0,0.00019975,2]
[359665516,1746232250223,-3229.47,0.00019975,2]
[359665517,1746232250232,-450.0,0.00019975,2]
[359665518,1746232250242,-531.66518055,0.00019975,2]
[359665519,1746232250251,-544.26,0.00019975,2]
[359665520,1746232250260,-1123.98,0.00019975,2]
[359665521,1746232250269,-450.0,0.00019975,2]
[359665522,1746232250279,-368.6913376,0.00019975,2]
[359665523,1746232250292,-81.3086624,0.00019975,2]
[359665524,1746232250302,-454.54,0.00019975,2]
[359665525,1746232250311,-450.0,0.00019975,2]
[359665526,1746232250320,-503.23,0.00019975,2]
[359665527,1746232250329,-450.0,0.00019975,2]
[359665528,1746232250339,-450.0,0.00019975,2]
[359665529,1746232250348,-591.29,0.00019975,2]
[359665530,1746232250357,-450.0,0.00019975,2]
[359665531,1746232250366,-758.65,0.00019975,2]
[359665532,1746232250376,-842.75,0.00019975,2]
[359665533,1746232250385,-572.35,0.00019975,2]
[359665534,1746232250395,-450.0,0.00019975,2]
[359665535,1746232250406,-247.39460982,0.00019975,2]
[359665536,1746232250416,-450.0,0.00019976,2]
[359665537,1746232250426,-450.0,0.00019976,2]
[359665538,1746232250436,-450.0,0.00019976,2]
[359665539,1746232250445,-450.0,0.00019976,2]
[359665540,1746232250455,-450.0,0.00019976,2]
[359665541,1746232250465,-347.12520808,0.00019976,2]
[359665542,1746232250474,-450.0,0.00019976,2]
[359665543,1746232250484,-640.06,0.00019976,2]
[359665544,1746232250493,-450.0,0.00019976,2]
[359665545,1746232250502,-468.66,0.00019976,2]
[359665546,1746232250512,-450.0,0.00019976,2]
[359665547,1746232250521,-482.39,0.00019976,2]
[359665548,1746232250531,-450.0,0.00019976,2]
[359665549,1746232250540,-450.0,0.00019976,2]
[359665550,1746232250549,-450.0,0.00019976,2]
[359665551,1746232250559,-450.0,0.00019976,2]
[359665552,1746232250568,-450.0,0.00019976,2]
[359665553,1746232250578,-450.0,0.00019976,2]
[359665554,1746232250587,-1024.59,0.00019976,2]
[359665555,1746232250597,-558.97,0.00019976,2]
[359665556,1746232250606,-450.0,0.00019976,2]
[359665557,1746232250616,-450.0,0.00019976,2]
[359665558,1746232250626,-544.41,0.00019976,2]
[359665559,1746232250635,-450.0,0.00019976,2]
[359665560,1746232250645,-1408.13,0.00019976,2]
[359665561,1746232250655,-536.47,0.00019976,2]
[359665562,1746232250664,-674.26,0.00019976,2]
[359665563,1746232250674,-450.0,0.00019976,2]
[359665564,1746232250683,-497.26,0.00019976,2]
[359665565,1746232250692,-450.0,0.00019976,2]
[359665566,1746232250702,-450.0,0.00019976,2]
[359665567,1746232250711,-450.0,0.00019976,2]
[359665568,1746232250720,-516.8,0.00019976,2]
[359665569,1746232250730,-450.0,0.00019976,2]
[359665570,1746232250739,-450.0,0.00019976,2]
[359665571,1746232250749,-553.5,0.00019976,2]
[359665572,1746232250758,-450.0,0.00019976,2]
[359665573,1746232250768,-450.0,0.00019976,2]
[359665574,1746232250777,-1612.68,0.00019976,2]
[359665575,1746232250788,-665.96,0.00019976,2]
[359665576,1746232250798,-553.71,0.00019976,2]
[359665577,1746232250808,-450.0,0.00019976,2]
[359665578,1746232250817,-717.71,0.00019976,2]
[359665579,1746232250827,-708.27,0.00019976,2]
[359665580,1746232250836,-714.78,0.00019976,2]
[359665581,1746232250845,-450.0,0.00019976,2]
[359665582,1746232250855,-662.73,0.00019976,2]
[359665583,1746232250864,-462.54,0.00019976,2]
[359665584,1746232250874,-1118.72,0.00019976,2]
[359665585,1746232250883,-280.71389357,0.00019976,2]
[359665586,1746232250893,-450.0,0.00019976,2]
[359665587,1746232250902,-450.0,0.00019976,2]
[359665588,1746232250912,-450.0,0.00019976,2]
[359665589,1746232250922,-910.91,0.00019976,2]
[359665590,1746232250931,-450.0,0.00019976,2]
[359665591,1746232250941,-450.0,0.00019976,2]
[359665592,1746232250950,-1119.72,0.00019976,2]
[359665593,1746232250959,-454.0,0.00019976,2]
[359665594,1746232250969,-510.75,0.00019976,2]
[359665595,1746232250978,-578.24,0.00019976,2]
[359665596,1746232250988,-1513.99,0.00019976,2]
[359665597,1746232250997,-650.58,0.00019976,2]
[359665598,1746232251007,-472.93,0.00019976,2]
[359665599,1746232251017,-450.0,0.00019976,2]
[359665600,1746232251026,-450.0,0.00019976,2]
[359665601,1746232251036,-578.83,0.00019976,2]
[359665602,1746232251045,-450.0,0.00019976,2]
[359665603,1746232251055,-450.0,0.00019976,2]
[359665604,1746232251064,-2330.07,0.00019976,2]
[359665605,1746232251073,-937.39,0.00019976,2]
[359665606,1746232251082,-998.11,0.00019976,2]
[359665607,1746232251092,-750.06,0.00019976,2]
[359665608,1746232251101,-450.0,0.00019976,2]
[359665609,1746232251110,-2049.33,0.00019976,2]
[359665610,1746232251119,-450.0,0.00019976,2]
[359665611,1746232251129,-500.0,0.00019976,2]
[359665612,1746232251139,-405.21,0.00019976,2]
[359665613,1746232251149,-450.0,0.00019976,2]
[359665614,1746232251158,-715.24,0.00019976,2]
[359665615,1746232251168,-450.0,0.00019976,2]
[359665616,1746232251179,-648.49,0.00019976,2]
[359665617,1746232251189,-538.69,0.00019976,2]
[359665618,1746232251199,-500.0,0.00019977,2]
[359665619,1746232251210,-150.0,0.00019977,2]
[359665620,1746232251223,-150.0,0.00019977,2]
[359665621,1746232251233,-150.0,0.00019978,2]
[359665622,1746232251242,-150.0,0.0001998,2]
[359665623,1746232251251,-38693.14699065,0.0001998,2]
[359665624,1746232251262,-150.0,0.00019982,2]
[359665625,1746232251272,-437.0,0.00019982,2]
[359665626,1746232251281,-500.0,0.00019982,2]
[359665627,1746232251291,-500.0,0.00019982,2]
[359665628,1746232251300,-500.0,0.00019982,2]
[359665629,1746232251310,-500.0,0.00019982,2]
[359665630,1746232251321,-441.0,0.00019982,2]
[359665631,1746232251330,-500.0,0.00019982,2]
[359665632,1746232251340,-500.0,0.00019982,2]
[359665633,1746232251349,-521.73356972,0.00019982,2]
[359665634,1746232251359,-150.0,0.00019982,2]
[359665635,1746232251369,-500.0,0.00019982,2]
[359665636,1746232251378,-500.0,0.00019982,2]
[359665637,1746232251388,-150.0,0.00019982,2]
[359665638,1746232251398,-150.0,0.00019982,2]
[359665639,1746232251408,-150.0,0.00019982,2]
[359665640,1746232251417,-40649.36830193,0.00019985,2]
[359665641,1746232251427,-307546.8919097,0.00019986,2]
[359665642,1746232251436,-21317.7037269,0.00019986,2]
[359665643,1746232251445,-9580.3814494,0.00019986,2]
[359665644,1746232251455,-22456.36485724,0.00019987,2]
[359665645,1746232251464,-150.050308,0.0001999,2]
[359665646,1746232251475,-1074.92705239,0.0001999,2]
[359665647,1746232251485,-1074.92705239,0.0001999,2]
[359665648,1746232251494,-150.050308,0.00019991,2]
[359665649,1746232251503,-150.050308,0.00019992,2]
[359665650,1746232251513,-150.050308,0.00019993,2]
[359665651,1746232251522,-150.050308,0.00019994,2]
[359665652,1746232251531,-150.0,0.00019994,2]
[359665653,1746232251540,-150.050308,0.00019995,2]
[359665654,1746232251549,-150.050308,0.00019996,2]
[359665655,1746232251558,-150.050308,0.00019997,2]
[359665656,1746232251567,-150.050308,0.00019998,2]
[359665657,1746232251576,-500.0,0.00019999,2]
[359665658,1746232251585,-675.05638042,0.00019999,2]
[359665659,1746232251594,-500.0,0.00019999,2]
[359665660,1746232251604,-300.0,0.00019999,2]
[359665661,1746232251613,-300.0,0.00019999,2]
[359665662,1746232251623,-300.0,0.00019999,2]
[359665663,1746232251632,-3972.49999901,0.00019999,2]
[359665664,1746232251641,-259.59690718,0.0002,2]
[359665665,1746232251652,-549153.77915108,0.0002,2]
[359665666,1746232251663,-3131203.86282058,0.0002,2]
[359665667,1746232251740,-328.47396994,0.0002,2]
[359665668,1746232251754,-2419.78327386,0.0002,2]
[359665669,1746232251769,-445.21500005,0.0002,2]
[359665670,1746232251880,-450.0,0.000197,2]
[359665671,1746232251894,-450.0,0.000197,2]